[Event "*** MasterClass Titled Tuesday Blitz"]
[Site "Chess.com"]
[Date "2017.08.01"]
[Round "4"]
[White "TastyFrenchFries"]
[Black "El-Ajedrecista"]
[Result "1-0"]
[WhiteElo "1915"]
[BlackElo "1821"]
[TimeControl "180+2"]
[EndTime "13:50:41 PDT"]
[Termination "TastyFrenchFries won on time"]

1. e4 {[%clk 0:03:01.9]} 1... c5 {[%clk 0:02:41.3]} 2. Nf3 {[%clk 0:02:58.9]}
2... d6 {[%clk 0:02:30.1]} 3. Bd3 {[%clk 0:02:55.8]} 3... Nc6 {[%clk 0:02:19.3]}
4. c3 {[%clk 0:02:50.6]} 4... Bg4 {[%clk 0:02:15]} 5. O-O {[%clk 0:02:44.1]}
5... Nf6 {[%clk 0:02:14.3]} 6. h3 {[%clk 0:02:38.9]} 6... Bh5 {[%clk 0:02:15]}
7. Bc2 {[%clk 0:02:38.1]} 7... e6 {[%clk 0:02:15.2]} 8. d3 {[%clk 0:02:30.7]}
8... Be7 {[%clk 0:02:07.8]} 9. Be3 {[%clk 0:02:23.8]} 9... O-O {[%clk
0:02:06.4]} 10. Nbd2 {[%clk 0:02:17]} 10... d5 {[%clk 0:02:06.9]} 11. Bf4 {[%clk
0:02:14.7]} 11... dxe4 {[%clk 0:01:25.8]} 12. dxe4 {[%clk 0:02:11.8]} 12... Bg6
{[%clk 0:01:09]} 13. Qe2 {[%clk 0:02:10.9]} 13... Qb6 {[%clk 0:00:27.8]} 14. Nc4
{[%clk 0:02:08.6]} 14... Qa6 {[%clk 0:00:29.1]} 15. a4 {[%clk 0:02:04.5]} 15...
Na5 {[%clk 0:00:25.1]} 16. Nfe5 {[%clk 0:01:58.8]} 16... Nxc4 {[%clk 0:00:22.4]}
17. Nxc4 {[%clk 0:02:00]} 17... Rad8 {[%clk 0:00:12.8]} 18. Rad1 {[%clk
0:01:56.7]} 18... Qc6 {[%clk 0:00:10.9]} 19. f3 {[%clk 0:01:51.4]} 19... Qc8
{[%clk 0:00:09]} 20. Ne5 {[%clk 0:01:43.1]} 20... Nd7 {[%clk 0:00:04.5]} 21.
Nxd7 {[%clk 0:01:40.5]} 21... Rxd7 {[%clk 0:00:05.3]} 22. Rxd7 {[%clk
0:01:39.8]} 22... Qxd7 {[%clk 0:00:06.1]} 23. Rd1 {[%clk 0:01:39.4]} 23... Qc6
{[%clk 0:00:07.6]} 24. Qb5 {[%clk 0:01:36.1]} 24... Qxb5 {[%clk 0:00:04]} 25.
axb5 {[%clk 0:01:38]} 25... Rd8 {[%clk 0:00:04.3]} 26. Ra1 {[%clk 0:01:35.3]}
26... Ra8 {[%clk 0:00:03.2]} 27. Bb3 {[%clk 0:01:36]} 27... Kf8 {[%clk
0:00:03.7]} 28. Kf2 {[%clk 0:01:31.4]} 28... Ke8 {[%clk 0:00:04.2]} 29. b6
{[%clk 0:01:29.2]} 29... a6 {[%clk 0:00:04.2]} 30. Ba4+ {[%clk 0:01:27.9]} 30...
Kf8 {[%clk 0:00:03.7]} 31. Bc6 {[%clk 0:01:18.1]} 1-0

[Event "*** MasterClass Titled Tuesday Blitz"]
[Site "Chess.com"]
[Date "2017.08.01"]
[Round "4"]
[White "Sharafiev_Azat"]
[Black "Tash_Boy"]
[Result "0-1"]
[WhiteElo "2269"]
[BlackElo "2436"]
[TimeControl "180+2"]
[EndTime "13:50:49 PDT"]
[Termination "Tash_Boy won by checkmate"]

1. Nf3 {[%clk 0:02:55.6]} 1... Nf6 {[%clk 0:03:00.4]} 2. c4 {[%clk 0:02:56.2]}
2... g6 {[%clk 0:03:00.8]} 3. Nc3 {[%clk 0:02:56.4]} 3... Bg7 {[%clk 0:03:02.7]}
4. e4 {[%clk 0:02:57.4]} 4... O-O {[%clk 0:03:04.6]} 5. d4 {[%clk 0:02:58.7]}
5... d6 {[%clk 0:03:05.8]} 6. Be2 {[%clk 0:03:00.1]} 6... e5 {[%clk 0:03:07.4]}
7. O-O {[%clk 0:03:00.9]} 7... Nc6 {[%clk 0:03:09]} 8. d5 {[%clk 0:02:57.1]}
8... Ne7 {[%clk 0:03:10.4]} 9. Ne1 {[%clk 0:02:57.9]} 9... Nd7 {[%clk
0:03:10.2]} 10. f3 {[%clk 0:02:59.1]} 10... f5 {[%clk 0:03:11.6]} 11. g4 {[%clk
0:03:00.2]} 11... Kh8 {[%clk 0:03:07.7]} 12. Nd3 {[%clk 0:02:58.5]} 12... Ng8
{[%clk 0:03:08.3]} 13. Be3 {[%clk 0:02:57.9]} 13... Bh6 {[%clk 0:03:08.2]} 14.
Bf2 {[%clk 0:02:58.5]} 14... Ndf6 {[%clk 0:03:06.7]} 15. c5 {[%clk 0:02:56.3]}
15... Bd7 {[%clk 0:03:02.3]} 16. cxd6 {[%clk 0:02:52.9]} 16... cxd6 {[%clk
0:03:02.5]} 17. h4 {[%clk 0:02:53.9]} 17... Bg7 {[%clk 0:02:56.2]} 18. Kg2
{[%clk 0:02:48.9]} 18... Rc8 {[%clk 0:02:57.5]} 19. g5 {[%clk 0:02:43.4]} 19...
Nh5 {[%clk 0:02:53.9]} 20. Rc1 {[%clk 0:02:43.4]} 20... h6 {[%clk 0:02:49.2]}
21. Rh1 {[%clk 0:02:15.3]} 21... hxg5 {[%clk 0:02:46.9]} 22. hxg5 {[%clk
0:02:15.8]} 22... Qxg5+ {[%clk 0:02:47.2]} 23. Kf1 {[%clk 0:02:17.2]} 23... Bh6
{[%clk 0:02:45.3]} 24. f4 {[%clk 0:01:51]} 24... Nxf4 {[%clk 0:02:41.2]} 25. Rg1
{[%clk 0:01:45]} 25... Qf6 {[%clk 0:02:35.4]} 26. Nxf4 {[%clk 0:01:40.4]} 26...
Bxf4 {[%clk 0:02:34.8]} 27. Rc2 {[%clk 0:01:41]} 27... Nh6 {[%clk 0:02:30.8]}
28. Bxa7 {[%clk 0:01:32.6]} 28... fxe4 {[%clk 0:02:26.1]} 29. Nxe4 {[%clk
0:01:30.6]} 29... Bh3+ {[%clk 0:02:22.6]} 30. Ke1 {[%clk 0:01:30.5]} 30... Qf5
{[%clk 0:02:23]} 31. Bd3 {[%clk 0:01:23.9]} 31... Rxc2 {[%clk 0:02:19.9]} 32.
Qxc2 {[%clk 0:01:21.8]} 32... Rc8 {[%clk 0:02:17.7]} 33. Nxd6 {[%clk 0:00:53.2]}
33... Rxc2 {[%clk 0:02:04.5]} 34. Bxf5 {[%clk 0:00:51.5]} 34... gxf5 {[%clk
0:01:59.6]} 35. Rg6 {[%clk 0:00:40.4]} 35... Kh7 {[%clk 0:01:53.5]} 36. Re6
{[%clk 0:00:38]} 36... Bg4 {[%clk 0:01:49.2]} 37. Nxb7 {[%clk 0:00:29.1]} 37...
Bg3+ {[%clk 0:01:44.3]} 38. Kf1 {[%clk 0:00:29.4]} 38... Bh3+ {[%clk 0:01:41]}
39. Kg1 {[%clk 0:00:29.4]} 39... Rc1# {[%clk 0:01:35.9]} 0-1

[Event "*** MasterClass Titled Tuesday Blitz"]
[Site "Chess.com"]
[Date "2017.08.01"]
[Round "4"]
[White "evgenysharapov"]
[Black "Anton_Demchenko"]
[Result "1-0"]
[WhiteElo "2267"]
[BlackElo "2733"]
[TimeControl "180+2"]
[EndTime "13:50:52 PDT"]
[Termination "evgenysharapov won by resignation"]

1. e4 {[%clk 0:03:00.3]} 1... c5 {[%clk 0:03:00.1]} 2. Nf3 {[%clk 0:03:00.9]}
2... d6 {[%clk 0:03:00.6]} 3. d4 {[%clk 0:03:01.7]} 3... cxd4 {[%clk 0:03:02.5]}
4. Nxd4 {[%clk 0:03:02.8]} 4... Nf6 {[%clk 0:03:04]} 5. Nc3 {[%clk 0:03:03.6]}
5... Nc6 {[%clk 0:03:05.6]} 6. g3 {[%clk 0:03:03.7]} 6... Bg4 {[%clk 0:02:50.2]}
7. f3 {[%clk 0:03:03.8]} 7... Bd7 {[%clk 0:02:50.9]} 8. Be3 {[%clk 0:03:03.4]}
8... a6 {[%clk 0:02:49.3]} 9. Qd2 {[%clk 0:03:01.6]} 9... e6 {[%clk 0:02:49.7]}
10. g4 {[%clk 0:03:02]} 10... Be7 {[%clk 0:02:35.5]} 11. O-O-O {[%clk
0:03:02.1]} 11... b5 {[%clk 0:02:31.3]} 12. g5 {[%clk 0:03:01.7]} 12... Nh5
{[%clk 0:02:31.8]} 13. f4 {[%clk 0:03:02.7]} 13... b4 {[%clk 0:02:15.7]} 14.
Nce2 {[%clk 0:03:02.2]} 14... Rc8 {[%clk 0:01:54.9]} 15. Ng3 {[%clk 0:03:01.8]}
15... Nxg3 {[%clk 0:01:00.6]} 16. hxg3 {[%clk 0:03:01.5]} 16... Nxd4 {[%clk
0:00:58.6]} 17. Bxd4 {[%clk 0:03:00.2]} 17... e5 {[%clk 0:00:57.1]} 18. Be3
{[%clk 0:02:58.1]} 18... Qc7 {[%clk 0:00:58]} 19. Kb1 {[%clk 0:02:55.5]} 19...
Bc6 {[%clk 0:00:56.1]} 20. Bg2 {[%clk 0:02:46.7]} 20... a5 {[%clk 0:00:56.1]}
21. Rc1 {[%clk 0:02:27.8]} 21... Qb7 {[%clk 0:00:53.8]} 22. Qd3 {[%clk
0:02:20.7]} 22... Bb5 {[%clk 0:00:50.2]} 23. Qd2 {[%clk 0:02:21.7]} 23... Bc6
{[%clk 0:00:46.3]} 24. Qd3 {[%clk 0:02:22.1]} 24... a4 {[%clk 0:00:47.2]} 25. c4
{[%clk 0:02:15.2]} 25... O-O {[%clk 0:00:39.2]} 26. f5 {[%clk 0:02:04.5]} 26...
f6 {[%clk 0:00:26.1]} 27. g6 {[%clk 0:01:54]} 27... hxg6 {[%clk 0:00:08.5]} 28.
fxg6 {[%clk 0:01:51.2]} 28... f5 {[%clk 0:00:09.6]} 29. Qe2 {[%clk 0:01:31.5]}
29... Bxe4+ {[%clk 0:00:10.8]} 30. Ka1 {[%clk 0:01:31.9]} 30... Rf6 {[%clk
0:00:04.3]} 31. Rh8+ {[%clk 0:01:29.4]} 31... Kxh8 {[%clk 0:00:05.5]} 32. Qh5+
{[%clk 0:01:30.1]} 1-0

[Event "*** MasterClass Titled Tuesday Blitz"]
[Site "Chess.com"]
[Date "2017.08.01"]
[Round "4"]
[White "Jungle_Jaguar"]
[Black "oskariot"]
[Result "0-1"]
[WhiteElo "2316"]
[BlackElo "2502"]
[TimeControl "180+2"]
[EndTime "13:50:53 PDT"]
[Termination "oskariot won by resignation"]

1. c4 {[%clk 0:03:01.9]} 1... Nf6 {[%clk 0:02:59.3]} 2. g3 {[%clk 0:03:00]} 2...
g6 {[%clk 0:02:59.9]} 3. Bg2 {[%clk 0:03:01.3]} 3... Bg7 {[%clk 0:02:58.4]} 4.
Nc3 {[%clk 0:03:02.7]} 4... O-O {[%clk 0:02:58]} 5. e4 {[%clk 0:03:04.3]} 5...
d6 {[%clk 0:02:59.1]} 6. Nge2 {[%clk 0:03:05.2]} 6... c6 {[%clk 0:03:00.6]} 7.
O-O {[%clk 0:03:05.8]} 7... a6 {[%clk 0:03:02.2]} 8. d4 {[%clk 0:03:06.4]} 8...
b5 {[%clk 0:02:58.6]} 9. b3 {[%clk 0:02:59.7]} 9... bxc4 {[%clk 0:02:47.6]} 10.
bxc4 {[%clk 0:03:00.4]} 10... Nbd7 {[%clk 0:02:46.5]} 11. h3 {[%clk 0:02:56.4]}
11... Rb8 {[%clk 0:02:29.1]} 12. Be3 {[%clk 0:02:54.3]} 12... c5 {[%clk
0:01:56.7]} 13. f4 {[%clk 0:02:48.8]} 13... cxd4 {[%clk 0:01:56.5]} 14. Bxd4
{[%clk 0:02:44.8]} 14... Bb7 {[%clk 0:01:55.1]} 15. Kh2 {[%clk 0:02:39.4]} 15...
e5 {[%clk 0:01:43.2]} 16. fxe5 {[%clk 0:02:33.3]} 16... Nxe5 {[%clk 0:01:34]}
17. Nd5 {[%clk 0:02:31.6]} 17... Nxd5 {[%clk 0:01:27.5]} 18. cxd5 {[%clk
0:02:32.4]} 18... a5 {[%clk 0:01:26.4]} 19. Nf4 {[%clk 0:02:07.2]} 19... Ba6
{[%clk 0:01:24.8]} 20. Rf2 {[%clk 0:02:01.2]} 20... h5 {[%clk 0:01:11.9]} 21.
Rc1 {[%clk 0:01:52.2]} 21... h4 {[%clk 0:01:09.9]} 22. g4 {[%clk 0:01:52.4]}
22... Qd7 {[%clk 0:00:55.1]} 23. Rfc2 {[%clk 0:01:49.4]} 23... Rfc8 {[%clk
0:00:53.7]} 24. Kh1 {[%clk 0:01:46.3]} 24... Rxc2 {[%clk 0:00:51.3]} 25. Qxc2
{[%clk 0:01:43.1]} 25... Rc8 {[%clk 0:00:51.9]} 26. Qd1 {[%clk 0:01:26.4]} 26...
Rxc1 {[%clk 0:00:52.5]} 27. Qxc1 {[%clk 0:01:28.3]} 27... Qa4 {[%clk 0:00:52]}
28. Bg1 {[%clk 0:01:08]} 28... Qxa2 {[%clk 0:00:37.1]} 29. Qc7 {[%clk
0:01:08.9]} 29... Qd2 {[%clk 0:00:34.6]} 30. Qxa5 {[%clk 0:00:40.6]} 30... Qxa5
{[%clk 0:00:34.8]} 0-1

[Event "*** MasterClass Titled Tuesday Blitz"]
[Site "Chess.com"]
[Date "2017.08.01"]
[Round "4"]
[White "igorkovalenko"]
[Black "TheLancer"]
[Result "1-0"]
[WhiteElo "2660"]
[BlackElo "2469"]
[TimeControl "180+2"]
[EndTime "13:50:56 PDT"]
[Termination "igorkovalenko won by resignation"]

1. e4 {[%clk 0:03:01.9]} 1... c5 {[%clk 0:03:01]} 2. Nf3 {[%clk 0:03:02.8]} 2...
g6 {[%clk 0:03:01.6]} 3. Bc4 {[%clk 0:03:01.4]} 3... Bg7 {[%clk 0:03:02.6]} 4.
O-O {[%clk 0:03:02.2]} 4... e6 {[%clk 0:03:02.9]} 5. Re1 {[%clk 0:03:03.4]} 5...
Ne7 {[%clk 0:03:03.9]} 6. c3 {[%clk 0:03:03.2]} 6... O-O {[%clk 0:03:03.4]} 7.
d4 {[%clk 0:03:04.4]} 7... cxd4 {[%clk 0:03:05.3]} 8. cxd4 {[%clk 0:03:06.3]}
8... d5 {[%clk 0:03:06.3]} 9. exd5 {[%clk 0:03:08]} 9... exd5 {[%clk 0:03:07.9]}
10. Bb5 {[%clk 0:03:04]} 10... Nbc6 {[%clk 0:02:45.3]} 11. Bg5 {[%clk
0:03:00.2]} 11... Qa5 {[%clk 0:02:31.1]} 12. Nc3 {[%clk 0:03:00.2]} 12... Nf5
{[%clk 0:02:27.1]} 13. Bxc6 {[%clk 0:03:00.3]} 13... bxc6 {[%clk 0:02:29]} 14.
Qd2 {[%clk 0:02:49.4]} 14... Ba6 {[%clk 0:02:09.1]} 15. Rad1 {[%clk 0:02:46]}
15... Nd6 {[%clk 0:02:08.3]} 16. b3 {[%clk 0:02:44.5]} 16... Rfe8 {[%clk
0:02:03.6]} 17. Bf4 {[%clk 0:02:39.8]} 17... Rxe1+ {[%clk 0:01:47.4]} 18. Rxe1
{[%clk 0:02:37.1]} 18... Nb5 {[%clk 0:01:44.4]} 19. Nxb5 {[%clk 0:02:31.4]}
19... Qxd2 {[%clk 0:01:31.5]} 20. Bxd2 {[%clk 0:02:33.3]} 20... Bxb5 {[%clk
0:01:31.6]} 21. Re7 {[%clk 0:02:28.4]} 21... Bf6 {[%clk 0:01:19.1]} 22. Rc7
{[%clk 0:02:29.2]} 22... Bd8 {[%clk 0:00:43]} 23. Rb7 {[%clk 0:02:29.9]} 23...
Bb6 {[%clk 0:00:41]} 24. h4 {[%clk 0:02:26.8]} 24... Be2 {[%clk 0:00:38.3]} 25.
Ng5 {[%clk 0:02:23.1]} 25... Rf8 {[%clk 0:00:22]} 26. Be3 {[%clk 0:02:21.1]}
26... h6 {[%clk 0:00:22.5]} 27. Nh3 {[%clk 0:02:21.6]} 27... Bg4 {[%clk
0:00:22.5]} 28. Nf4 {[%clk 0:02:14.9]} 28... Kg7 {[%clk 0:00:22.1]} 29. Nd3
{[%clk 0:02:01.1]} 29... Bc8 {[%clk 0:00:22.9]} 30. Re7 {[%clk 0:02:01.7]} 30...
Kf6 {[%clk 0:00:24.1]} 31. Re5 {[%clk 0:02:02.9]} 31... Kg7 {[%clk 0:00:20.6]}
32. b4 {[%clk 0:01:55.7]} 32... Bf5 {[%clk 0:00:18.6]} 33. Nc5 {[%clk
0:01:55.9]} 33... Bxc5 {[%clk 0:00:19.3]} 34. dxc5 {[%clk 0:01:57.2]} 34... Be6
{[%clk 0:00:20.7]} 35. Bd4 {[%clk 0:01:56.6]} 35... Kh7 {[%clk 0:00:22.1]} 36.
a4 {[%clk 0:01:46.3]} 36... Rb8 {[%clk 0:00:20.8]} 37. Bc3 {[%clk 0:01:47.8]}
37... d4 {[%clk 0:00:21]} 38. Bd2 {[%clk 0:01:49.3]} 38... Kg7 {[%clk
0:00:13.7]} 39. f3 {[%clk 0:01:49.9]} 39... Kf6 {[%clk 0:00:14]} 40. Re4 {[%clk
0:01:50.6]} 40... Rd8 {[%clk 0:00:15.2]} 41. Bxh6 {[%clk 0:01:51.4]} 41... d3
{[%clk 0:00:14.8]} 42. Bg5+ {[%clk 0:01:51.3]} 1-0

[Event "*** MasterClass Titled Tuesday Blitz"]
[Site "Chess.com"]
[Date "2017.08.01"]
[Round "4"]
[White "Jospem"]
[Black "Fisher-Human"]
[Result "0-1"]
[WhiteElo "2604"]
[BlackElo "2458"]
[TimeControl "180+2"]
[EndTime "13:51:18 PDT"]
[Termination "Fisher-Human won by checkmate"]

1. c4 {[%clk 0:03:01.9]} 1... Nf6 {[%clk 0:02:55.6]} 2. g3 {[%clk 0:03:03]} 2...
d5 {[%clk 0:02:54.6]} 3. cxd5 {[%clk 0:03:03.4]} 3... Nxd5 {[%clk 0:02:56.5]} 4.
Bg2 {[%clk 0:03:04.6]} 4... g6 {[%clk 0:02:55.5]} 5. Nc3 {[%clk 0:03:05.9]} 5...
Nb6 {[%clk 0:02:55.5]} 6. d3 {[%clk 0:03:07.4]} 6... Bg7 {[%clk 0:02:54.1]} 7.
Be3 {[%clk 0:03:08.9]} 7... Nc6 {[%clk 0:02:55.5]} 8. Qd2 {[%clk 0:03:10.1]}
8... Nd4 {[%clk 0:02:56]} 9. h4 {[%clk 0:03:08]} 9... h5 {[%clk 0:02:47.4]} 10.
Nf3 {[%clk 0:03:07.2]} 10... e5 {[%clk 0:02:48.4]} 11. Rc1 {[%clk 0:03:05.5]}
11... c6 {[%clk 0:02:43.9]} 12. O-O {[%clk 0:02:59.8]} 12... Bg4 {[%clk
0:02:35.4]} 13. Ng5 {[%clk 0:02:30.7]} 13... O-O {[%clk 0:02:23.2]} 14. Rfe1
{[%clk 0:02:22.2]} 14... Qe7 {[%clk 0:02:21.6]} 15. Bxd4 {[%clk 0:02:11.7]}
15... exd4 {[%clk 0:02:23.5]} 16. Nce4 {[%clk 0:02:12.8]} 16... Nd5 {[%clk
0:02:18.7]} 17. Nc5 {[%clk 0:02:08.2]} 17... Rad8 {[%clk 0:02:16.8]} 18. Nf3
{[%clk 0:01:50.2]} 18... b6 {[%clk 0:02:11.9]} 19. Ne4 {[%clk 0:01:50.4]} 19...
c5 {[%clk 0:02:12.9]} 20. a3 {[%clk 0:01:50.4]} 20... Rfe8 {[%clk 0:02:06.7]}
21. Qd1 {[%clk 0:01:46.6]} 21... f5 {[%clk 0:01:49.4]} 22. Neg5 {[%clk
0:01:47.1]} 22... f4 {[%clk 0:01:50]} 23. Ne4 {[%clk 0:01:45.9]} 23... fxg3
{[%clk 0:01:47.2]} 24. fxg3 {[%clk 0:01:47.8]} 24... Bf5 {[%clk 0:01:39]} 25.
Nfg5 {[%clk 0:01:47.7]} 25... Bh6 {[%clk 0:01:36.9]} 26. Qb3 {[%clk 0:01:46.8]}
26... Kg7 {[%clk 0:01:33.7]} 27. Rf1 {[%clk 0:01:26.5]} 27... Bxe4 {[%clk
0:01:28.6]} 28. Bxe4 {[%clk 0:00:57.9]} 28... Bxg5 {[%clk 0:01:28.3]} 29. Bxd5
{[%clk 0:00:55.5]} 29... Rxd5 {[%clk 0:01:14.8]} 30. Qxd5 {[%clk 0:00:55.1]}
30... Bxc1 {[%clk 0:01:15.4]} 31. e4 {[%clk 0:00:47.6]} 31... Be3+ {[%clk
0:01:12.2]} 32. Kg2 {[%clk 0:00:48.7]} 32... Rf8 {[%clk 0:01:12.1]} 33. Rxf8
{[%clk 0:00:28.9]} 33... Qxf8 {[%clk 0:01:14]} 34. Qe5+ {[%clk 0:00:30.2]} 34...
Kh6 {[%clk 0:01:03.9]} 35. Kh3 {[%clk 0:00:15.3]} 35... Qf1+ {[%clk 0:01:02.7]}
36. Kh2 {[%clk 0:00:16.6]} 36... Qg1+ {[%clk 0:01:03.6]} 37. Kh3 {[%clk
0:00:17.4]} 37... Qh1# {[%clk 0:01:05.5]} 0-1

[Event "*** MasterClass Titled Tuesday Blitz"]
[Site "Chess.com"]
[Date "2017.08.01"]
[Round "4"]
[White "Muracle"]
[Black "MITerryble"]
[Result "0-1"]
[WhiteElo "2436"]
[BlackElo "2681"]
[TimeControl "180+2"]
[EndTime "13:51:37 PDT"]
[Termination "MITerryble won by resignation"]

1. Nf3 {[%clk 0:03:01.9]} 1... Nf6 {[%clk 0:03:00.7]} 2. g3 {[%clk 0:03:03]}
2... d5 {[%clk 0:03:01.7]} 3. Bg2 {[%clk 0:03:04]} 3... c6 {[%clk 0:03:03.1]} 4.
O-O {[%clk 0:03:04.9]} 4... Bg4 {[%clk 0:03:04.1]} 5. d3 {[%clk 0:03:05.8]} 5...
Nbd7 {[%clk 0:03:05.2]} 6. Nbd2 {[%clk 0:03:05.7]} 6... e6 {[%clk 0:03:03.6]} 7.
b3 {[%clk 0:03:05.8]} 7... Bd6 {[%clk 0:03:04.2]} 8. Bb2 {[%clk 0:03:02.5]} 8...
O-O {[%clk 0:03:04.9]} 9. e4 {[%clk 0:03:03.5]} 9... Qe7 {[%clk 0:02:58.2]} 10.
a4 {[%clk 0:02:58.4]} 10... Rad8 {[%clk 0:02:53.1]} 11. h3 {[%clk 0:02:57.3]}
11... Bxf3 {[%clk 0:02:54.1]} 12. Qxf3 {[%clk 0:02:56.4]} 12... Bb4 {[%clk
0:02:48.3]} 13. Rad1 {[%clk 0:02:43.8]} 13... Qc5 {[%clk 0:02:25.8]} 14. c4
{[%clk 0:02:27]} 14... Qa5 {[%clk 0:02:12.7]} 15. Qe2 {[%clk 0:02:16.8]} 15...
Bc3 {[%clk 0:02:03.5]} 16. Nb1 {[%clk 0:02:04.2]} 16... Bxb2 {[%clk 0:02:03.7]}
17. Qxb2 {[%clk 0:02:06.1]} 17... dxe4 {[%clk 0:02:04.7]} 18. dxe4 {[%clk
0:02:06.1]} 18... e5 {[%clk 0:01:39.5]} 19. Nc3 {[%clk 0:01:33.6]} 19... Qb4
{[%clk 0:01:34.7]} 20. Na2 {[%clk 0:01:27.9]} 20... Qc5 {[%clk 0:01:31.9]} 21.
Nc1 {[%clk 0:01:25.6]} 21... a5 {[%clk 0:01:31.6]} 22. Nd3 {[%clk 0:01:25.9]}
22... Qe7 {[%clk 0:01:30.9]} 23. Qc3 {[%clk 0:01:22.9]} 23... Nc5 {[%clk
0:01:16.8]} 24. Nxe5 {[%clk 0:01:09.1]} 24... Ncxe4 {[%clk 0:01:16.7]} 25. Qb2
{[%clk 0:01:05.7]} 25... Rfe8 {[%clk 0:01:04.3]} 26. Rxd8 {[%clk 0:01:03.9]}
26... Qxd8 {[%clk 0:01:06.2]} 27. Bxe4 {[%clk 0:00:49.4]} 27... Nxe4 {[%clk
0:01:06.7]} 28. Ng4 {[%clk 0:00:49.1]} 28... Nd2 {[%clk 0:01:02.2]} 29. Rc1
{[%clk 0:00:43.2]} 29... Qd3 {[%clk 0:00:58.2]} 30. Ne3 {[%clk 0:00:29.8]} 30...
Rxe3 {[%clk 0:00:42.6]} 31. fxe3 {[%clk 0:00:30.5]} 31... Qxe3+ {[%clk
0:00:41.7]} 32. Kh1 {[%clk 0:00:28.6]} 32... Qf3+ {[%clk 0:00:40.1]} 33. Kg1
{[%clk 0:00:28.2]} 33... Qxg3+ {[%clk 0:00:37.1]} 34. Kh1 {[%clk 0:00:29.4]}
34... Qxh3+ {[%clk 0:00:36.8]} 35. Kg1 {[%clk 0:00:30.9]} 35... Qe3+ {[%clk
0:00:36]} 36. Kh1 {[%clk 0:00:31.4]} 36... Qf3+ {[%clk 0:00:36.9]} 37. Kg1
{[%clk 0:00:32.4]} 37... Qe2 {[%clk 0:00:35.1]} 0-1

[Event "*** MasterClass Titled Tuesday Blitz"]
[Site "Chess.com"]
[Date "2017.08.01"]
[Round "4"]
[White "joppie2"]
[Black "LastHeroJr"]
[Result "1-0"]
[WhiteElo "2613"]
[BlackElo "2402"]
[TimeControl "180+2"]
[EndTime "13:51:37 PDT"]
[Termination "joppie2 won by resignation"]

1. e4 {[%clk 0:03:01.9]} 1... e5 {[%clk 0:03:00.9]} 2. Nf3 {[%clk 0:03:03.5]}
2... Nc6 {[%clk 0:03:02.4]} 3. Bc4 {[%clk 0:03:05.2]} 3... Nf6 {[%clk 0:03:02]}
4. d3 {[%clk 0:03:05.9]} 4... Bc5 {[%clk 0:03:03.2]} 5. c3 {[%clk 0:03:06.9]}
5... d6 {[%clk 0:03:04.5]} 6. a4 {[%clk 0:03:07]} 6... a6 {[%clk 0:03:01.2]} 7.
O-O {[%clk 0:03:08.7]} 7... O-O {[%clk 0:03:02]} 8. Bg5 {[%clk 0:03:08.9]} 8...
h6 {[%clk 0:03:01.6]} 9. Bh4 {[%clk 0:03:10]} 9... g5 {[%clk 0:03:02.8]} 10. Bg3
{[%clk 0:03:10.9]} 10... g4 {[%clk 0:03:01.6]} 11. Bh4 {[%clk 0:03:08.9]} 11...
gxf3 {[%clk 0:02:03.1]} 12. Qxf3 {[%clk 0:03:10.8]} 12... Kg7 {[%clk 0:02:00.4]}
13. b4 {[%clk 0:03:11.9]} 13... Bb6 {[%clk 0:01:49.9]} 14. a5 {[%clk 0:03:11.8]}
14... Ba7 {[%clk 0:01:50.7]} 15. Na3 {[%clk 0:03:12.6]} 15... h5 {[%clk
0:01:44.7]} 16. h3 {[%clk 0:03:11.4]} 16... Rh8 {[%clk 0:01:40]} 17. Nc2 {[%clk
0:03:12.3]} 17... Rh6 {[%clk 0:01:40.1]} 18. Ne3 {[%clk 0:03:13.5]} 18... Be6
{[%clk 0:01:35.5]} 19. Bd5 {[%clk 0:03:04.1]} 19... Rg6 {[%clk 0:01:29.7]} 20.
Nf5+ {[%clk 0:02:34.3]} 20... Bxf5 {[%clk 0:01:28.3]} 21. exf5 {[%clk
0:02:36.2]} 21... Rh6 {[%clk 0:01:29.2]} 22. Qg3+ {[%clk 0:02:37]} 22... Kh7
{[%clk 0:01:19.9]} 23. Bxf7 {[%clk 0:02:37]} 23... Ne7 {[%clk 0:00:56.3]} 24.
Be6 {[%clk 0:02:11.1]} 24... Qf8 {[%clk 0:00:39.8]} 25. Bg5 {[%clk 0:02:11]}
25... Qg7 {[%clk 0:00:40.9]} 26. Kh1 {[%clk 0:01:56]} 26... h4 {[%clk 0:00:39]}
27. Bxh4 {[%clk 0:01:57.2]} 27... Qxg3 {[%clk 0:00:33.8]} 28. fxg3 {[%clk
0:01:59.1]} 28... Rf8 {[%clk 0:00:24.6]} 29. Bg5 {[%clk 0:01:54.9]} 29... Rh5
{[%clk 0:00:25.7]} 30. Bxf6 {[%clk 0:01:55.5]} 30... Rxf6 {[%clk 0:00:26.1]} 31.
g4 {[%clk 0:01:57.4]} 31... Rh4 {[%clk 0:00:23.4]} 32. Kh2 {[%clk 0:01:55.1]}
32... Kh8 {[%clk 0:00:20.5]} 33. g5 {[%clk 0:01:53.6]} 33... Rf8 {[%clk
0:00:21.2]} 34. g3 {[%clk 0:01:45]} 34... Rh5 {[%clk 0:00:22.5]} 35. h4 {[%clk
0:01:44.9]} 35... Rh7 {[%clk 0:00:21.9]} 36. Kh3 {[%clk 0:01:45.8]} 36... Nc6
{[%clk 0:00:17.9]} 37. f6 {[%clk 0:01:43.8]} 37... Nd8 {[%clk 0:00:13.7]} 38.
Bb3 {[%clk 0:01:42.8]} 38... c6 {[%clk 0:00:13.9]} 39. g6 {[%clk 0:01:43.9]}
39... Rd7 {[%clk 0:00:09.7]} 40. g7+ {[%clk 0:01:45.1]} 40... Rxg7 {[%clk
0:00:11]} 41. fxg7+ {[%clk 0:01:47]} 41... Kxg7 {[%clk 0:00:12.9]} 42. Rxf8
{[%clk 0:01:48.6]} 42... Kxf8 {[%clk 0:00:14.8]} 43. Rf1+ {[%clk 0:01:49.8]}
43... Kg7 {[%clk 0:00:16.3]} 44. Rf5 {[%clk 0:01:44.8]} 44... Bb8 {[%clk
0:00:16.9]} 45. Rg5+ {[%clk 0:01:45]} 45... Kf6 {[%clk 0:00:16.9]} 46. Rg8
{[%clk 0:01:45.8]} 46... Bc7 {[%clk 0:00:18.5]} 47. h5 {[%clk 0:01:35.4]} 47...
d5 {[%clk 0:00:19.9]} 48. h6 {[%clk 0:01:36.8]} 48... Ne6 {[%clk 0:00:21.4]} 49.
h7 {[%clk 0:01:36.3]} 1-0